bitfinex/quotes_BTCUSD_20251110
["timestamp","ask_amount","ask_price","bid_price","bid_amount"]
[1762740555229,0.00075304,105760.0,105750.0,0.64057421]
[1762740555402,0.00075304,105760.0,105750.0,0.76016897]
[1762740555674,0.00175304,105760.0,105750.0,0.77116897]
[1762740556011,0.00075304,105760.0,105750.0,0.76416897]
[1762740556212,0.00175304,105760.0,105750.0,0.77316897]
[1762740557517,0.00175304,105760.0,105750.0,0.35569264]
[1762740557744,0.00175304,105760.0,105750.0,0.32172005]
[1762740557949,0.00175304,105760.0,105750.0,0.35569264]
[1762740558322,0.00175304,105760.0,105750.0,0.77316897]
[1762740563866,0.00175304,105760.0,105750.0,0.81912429]
[1762740564941,0.23064045,105760.0,105750.0,0.06725994]
[1762740565204,0.23064045,105760.0,105750.0,0.03328735]
[1762740565205,0.26682273,105760.0,105750.0,0.03328735]
[1762740565624,0.58982273,105760.0,105750.0,0.03328735]
[1762740565869,0.58929211,105760.0,105750.0,0.004]
[1762740566063,0.18912529,105750.0,105740.0,0.05934]
[1762740566275,0.26460595,105750.0,105740.0,0.05626549]
[1762740566502,0.24096529,105750.0,105740.0,0.02536741]
[1762740567179,0.27714757,105750.0,105740.0,0.02536741]
[1762740567299,0.27761841,105750.0,105740.0,0.02536741]
[1762740567747,0.31930757,105750.0,105740.0,0.02536741]
[1762740567940,0.66230757,105750.0,105740.0,0.02736741]
[1762740568354,0.67979176,105750.0,105740.0,0.002]
[1762740568772,0.6802626,105750.0,105740.0,0.002]
[1762740568973,0.68025841,105750.0,105740.0,0.002]
[1762740569541,0.67979176,105750.0,105740.0,0.002]
[1762740569759,0.68025841,105750.0,105740.0,0.002]
[1762740569960,0.27485176,105750.0,105740.0,0.002]
[1762740570174,0.30542114,105750.0,105740.0,0.19114318]
[1762740570384,0.31701176,105750.0,105740.0,0.002]
[1762740570585,0.33414114,105750.0,105740.0,0.002]
[1762740570829,0.35726114,105750.0,105740.0,0.002]
[1762740571007,0.35726114,105750.0,105740.0,0.19114318]
[1762740571210,0.33367176,105750.0,105740.0,0.19114318]
[1762740571642,0.03795406,105750.0,105740.0,0.19114318]
[1762740572280,0.22707935,105750.0,105740.0,0.19114318]
[1762740572479,0.22707935,105750.0,105740.0,0.002]
[1762740572721,0.23961162,105750.0,105740.0,0.002]
[1762740573283,0.22755162,105750.0,105740.0,0.19114318]
[1762740573448,0.25579935,105750.0,105740.0,0.002]
[1762740573651,0.27891935,105750.0,105740.0,0.002]
[1762740573892,0.27939019,105750.0,105740.0,0.002]
[1762740574314,0.27939019,105750.0,105740.0,0.02738831]
[1762740575034,0.27939019,105750.0,105740.0,0.21653149]
[1762740575231,0.27891935,105750.0,105740.0,0.21653149]
[1762740575385,0.25579935,105750.0,105740.0,0.21653149]
[1762740576721,0.25579935,105750.0,105740.0,0.02738831]
[1762740576928,0.25626873,105750.0,105740.0,0.02738831]
[1762740577106,0.27891935,105750.0,105740.0,0.002]
[1762740577539,0.27891935,105750.0,105740.0,0.02738831]
[1762740577913,0.31510163,105750.0,105740.0,0.02738831]
[1762740578134,0.31510163,105750.0,105740.0,0.002]
[1762740578340,0.31557101,105750.0,105740.0,0.002]
[1762740581134,0.31510163,105750.0,105740.0,0.002]
[1762740581334,0.31557101,105750.0,105740.0,0.002]
[1762740583087,0.31557101,105750.0,105740.0,0.19114318]
[1762740583295,0.31510163,105750.0,105740.0,0.19114318]
[1762740583728,0.31510163,105750.0,105740.0,0.002]
[1762740583851,0.31557101,105750.0,105740.0,0.002]
[1762740585327,0.31557101,105750.0,105740.0,0.19114318]
[1762740585533,0.31510163,105750.0,105740.0,0.002]
[1762740585705,0.31557101,105750.0,105740.0,0.002]
[1762740588004,0.31557101,105750.0,105740.0,0.19114318]
[1762740588175,0.29945744,105750.0,105740.0,0.002]
[1762740588383,0.29992828,105750.0,105740.0,0.02738831]
[1762740588802,0.34204828,105750.0,105740.0,0.21653149]
[1762740589012,0.34157744,105750.0,105740.0,0.21653149]
[1762740589659,0.29945744,105750.0,105740.0,0.02738831]
[1762740589857,0.29992828,105750.0,105740.0,0.02738831]
[1762740590035,0.34204828,105750.0,105740.0,0.02738831]
[1762740590240,0.34204828,105750.0,105740.0,0.21653149]
[1762740590505,0.34157744,105750.0,105740.0,0.02738831]
[1762740590631,0.34204958,105750.0,105740.0,0.21653149]
[1762740590831,0.31661744,105750.0,105740.0,0.26560016]
[1762740591046,0.29995744,105750.0,105740.0,0.25050408]
[1762740591248,0.25783744,105750.0,105740.0,0.25050408]
[1762740591497,0.31627744,105750.0,105740.0,0.25050408]
[1762740591711,0.34124744,105750.0,105740.0,0.25050408]
[1762740592680,0.34124744,105750.0,105740.0,0.6425921]
[1762740592681,0.02046987,105750.0,105740.0,0.6425921]
[1762740592909,0.02046987,105750.0,105740.0,1.07091926]
[1762740593264,0.02046987,105750.0,105740.0,1.08770899]
[1762740594073,0.02046987,105750.0,105740.0,1.09270899]
[1762740594514,0.00046987,105750.0,105740.0,1.09070899]
[1762740595341,0.00746987,105750.0,105740.0,1.09170899]
[1762740595775,0.00046987,105750.0,105740.0,1.09070899]
[1762740596225,0.00146987,105750.0,105740.0,1.10070899]
[1762740600424,0.00146987,105750.0,105740.0,0.68323266]
[1762740600633,0.00146987,105750.0,105740.0,1.10070899]
[1762740600984,0.00146987,105750.0,105740.0,0.96653148]
[1762740601578,0.00146987,105750.0,105740.0,0.89871948]
[1762740602806,4.83e-05,105760.0,105750.0,0.51212529]
[1762740603020,4.83e-05,105760.0,105750.0,1.24463666]
[1762740603453,4.83e-05,105760.0,105750.0,1.22775433]
[1762740604220,4.83e-05,105760.0,105750.0,1.24075433]
[1762740604884,4.83e-05,105760.0,105750.0,0.67415669]
[1762740605006,4.83e-05,105760.0,105750.0,1.09137742]
[1762740606624,4.83e-05,105760.0,105750.0,1.23827742]
[1762740608508,0.0002832,105760.0,105750.0,1.23827742]
[1762740608714,0.0004,105780.0,105770.0,0.18908953]
[1762740608916,0.0004,105780.0,105770.0,0.72157624]
[1762740609466,0.0004,105780.0,105770.0,0.75549745]
[1762740610008,0.0004,105780.0,105770.0,0.75749745]
[1762740610250,0.0004,105780.0,105770.0,0.34027672]
[1762740610460,0.0004,105780.0,105770.0,0.76994733]
[1762740611084,0.0004,105780.0,105770.0,0.80123408]
[1762740611289,0.0004,105780.0,105770.0,1.12423408]
[1762740611493,0.0004,105780.0,105770.0,1.1392134]
[1762740611697,0.20209705,105820.0,105770.0,1.1392134]
[1762740611698,0.18900776,105820.0,105810.0,0.18901492]
[1762740611908,0.0004828,105820.0,105810.0,0.61059289]
[1762740613110,0.18948298,105820.0,105810.0,0.42157797]
[1762740613619,0.18903591,105800.0,105790.0,0.38900967]
[1762740613856,0.18903591,105800.0,105790.0,0.02587982]
[1762740614071,0.18903591,105800.0,105790.0,0.07741419]
[1762740614526,0.18903591,105800.0,105790.0,0.052007]
[1762740614710,0.18903591,105800.0,105790.0,0.057007]
[1762740614898,0.18903591,105800.0,105790.0,0.059007]
[1762740615102,0.18997508,105800.0,105790.0,0.059007]
[1762740615506,0.18997508,105800.0,105790.0,0.11995106]
[1762740615963,0.18997508,105800.0,105790.0,0.11495106]
[1762740616091,0.00093917,105800.0,105790.0,0.60561232]
[1762740616297,0.00093917,105800.0,105790.0,0.63301951]
[1762740618429,0.00093917,105800.0,105790.0,0.63349214]
[1762740619155,0.18997508,105800.0,105790.0,0.63301951]
[1762740619358,0.18997508,105800.0,105790.0,0.63349214]
[1762740621310,0.00093917,105800.0,105790.0,0.63349214]
[1762740621472,0.18997508,105800.0,105790.0,0.63349214]
[1762740622109,0.00093917,105800.0,105790.0,0.63349214]
[1762740622316,0.00093917,105800.0,105790.0,0.66736839]
[1762740622726,0.18997508,105800.0,105790.0,0.66736839]
[1762740623556,0.00093917,105800.0,105790.0,0.66736839]
[1762740624196,0.00093917,105800.0,105790.0,0.69277558]
[1762740626322,0.00093917,105800.0,105790.0,0.6419612]
[1762740626933,0.00093917,105800.0,105790.0,0.69277558]
[1762740629677,0.00093917,105800.0,105790.0,0.69276643]
[1762740629863,0.00093917,105800.0,105790.0,0.65889933]
[1762740630863,0.00093917,105800.0,105790.0,0.67589695]
[1762740633158,0.00093917,105800.0,105790.0,0.99842432]
[1762740633384,0.00093917,105800.0,105790.0,0.99889695]
[1762740637703,0.00093917,105800.0,105790.0,0.99842432]
[1762740638154,0.00093917,105800.0,105790.0,0.99889695]
[1762740638289,0.00093917,105800.0,105790.0,0.93061232]
[1762740638494,0.00093917,105800.0,105790.0,1.01534399]
[1762740638900,0.00093917,105800.0,105790.0,1.35101344]
[1762740639098,0.00093917,105800.0,105790.0,0.94787962]
[1762740639350,0.00093917,105800.0,105790.0,1.03213866]
[1762740639554,0.00093917,105800.0,105790.0,1.39382445]
[1762740639770,0.00093917,105800.0,105790.0,1.37537422]
[1762740640179,0.00093917,105800.0,105790.0,1.37337422]
[1762740640389,0.00093917,105800.0,105790.0,1.37384685]
[1762740641041,0.00093917,105800.0,105790.0,1.37784685]
[1762740641440,0.00093917,105800.0,105790.0,1.37384685]
[1762740641860,0.00093917,105800.0,105790.0,1.37984685]
[1762740642029,0.00093917,105800.0,105790.0,1.38384685]
[1762740642252,0.00093917,105800.0,105790.0,1.37984685]
[1762740642649,0.00093917,105800.0,105790.0,1.38484685]
[1762740642874,0.00093917,105800.0,105790.0,1.38437422]
[1762740643078,0.00093917,105800.0,105790.0,1.41129707]
[1762740643281,0.00093917,105800.0,105790.0,1.38484685]
[1762740644506,0.0004828,105820.0,105810.0,1.1442245]
[1762740644767,0.0004828,105820.0,105810.0,0.99182387]
[1762740644976,0.0004828,105820.0,105810.0,1.01038718]
[1762740645355,0.0004828,105820.0,105810.0,1.33338718]
[1762740645554,0.0004828,105820.0,105810.0,1.33938718]
[1762740645717,0.0004828,105820.0,105810.0,1.34438718]
[1762740646123,0.0004828,105820.0,105810.0,1.33938718]
[1762740646328,0.0004828,105820.0,105810.0,1.34438718]
[1762740647342,0.0004828,105820.0,105810.0,1.33838718]
[1762740647817,0.0004828,105820.0,105810.0,1.34238718]
[1762740648028,0.0004828,105820.0,105810.0,1.34285972]
[1762740649499,0.0004828,105820.0,105810.0,1.66126187]
[1762740649671,0.0004828,105820.0,105810.0,1.34285972]
[1762740650291,0.00095221,105820.0,105810.0,1.34285972]
[1762740650808,0.00095221,105820.0,105810.0,1.34238718]
[1762740651212,0.00095221,105820.0,105810.0,1.35921906]
[1762740651883,0.00095221,105820.0,105810.0,1.3596916]
[1762740654639,0.00095221,105820.0,105810.0,1.35921906]
[1762740655074,2.21e-06,105820.0,105810.0,1.41122606]
[1762740655280,0.0004,105840.0,105830.0,0.18898233]
[1762740655494,0.00054486,105840.0,105830.0,0.98337826]
[1762740656431,0.00054486,105840.0,105830.0,0.98437826]
[1762740657240,0.00054486,105840.0,105830.0,1.30737826]
[1762740657633,0.00054486,105840.0,105830.0,1.31137826]
[1762740659011,0.00047192,105870.0,105860.0,0.18892877]
[1762740659300,0.21871897,105880.0,105860.0,0.3571328]
[1762740659502,0.26540478,105870.0,105850.0,0.300239]
[1762740659688,0.25934681,105870.0,105860.0,0.31840215]
[1762740659978,0.18892877,105860.0,105850.0,0.42969763]
[1762740660178,0.22251466,105860.0,105850.0,0.42969763]
[1762740660386,0.22251466,105860.0,105850.0,0.61864425]
[1762740660604,0.22251466,105860.0,105850.0,0.42969763]
[1762740660811,0.22251466,105860.0,105850.0,0.61864425]
[1762740661013,0.22251466,105860.0,105850.0,0.42969763]
[1762740661190,0.22351466,105860.0,105850.0,0.61864425]
[1762740661363,0.22351466,105860.0,105850.0,0.62064425]
[1762740661567,0.01855589,105860.0,105850.0,0.71874598]
[1762740661761,0.20842303,105860.0,105850.0,0.71874598]
[1762740661963,0.20842855,105860.0,105850.0,0.71874598]
[1762740662168,0.00193837,105860.0,105850.0,0.62064425]
[1762740662363,0.19086714,105860.0,105850.0,0.62064425]
[1762740663642,0.00193837,105860.0,105850.0,0.62064425]
[1762740663767,0.19086714,105860.0,105850.0,0.62064425]
[1762740664526,0.00193837,105860.0,105850.0,0.62064425]
[1762740665929,0.00193837,105860.0,105850.0,0.43169763]
[1762740666238,0.20273714,105860.0,105850.0,0.62064425]
[1762740666393,0.21876714,105860.0,105850.0,0.62064425]
[1762740666754,0.01380837,105860.0,105850.0,0.62064425]
[1762740666935,0.00193837,105860.0,105850.0,0.62064425]
[1762740667572,0.19086714,105860.0,105850.0,0.62064425]
[1762740668600,0.20273714,105860.0,105850.0,0.3022421]
[1762740668803,0.21876714,105860.0,105850.0,0.62064425]
[1762740669229,0.24374714,105860.0,105850.0,0.02740935]
[1762740669911,0.02983837,105860.0,105850.0,0.58676512]
[1762740670112,0.20273714,105860.0,105850.0,0.62064425]
[1762740670728,0.01380837,105860.0,105850.0,0.3022421]
[1762740670927,0.01380837,105860.0,105850.0,0.62064425]
[1762740671737,0.01380837,105860.0,105850.0,0.6460536]
[1762740671939,0.20273714,105860.0,105850.0,0.6460536]
[1762740672177,0.01380837,105860.0,105850.0,0.6460536]
[1762740672532,0.00193837,105860.0,105850.0,0.61217447]
[1762740672699,0.00193837,105860.0,105850.0,0.6460795]
[1762740672861,0.00193837,105860.0,105850.0,0.61050663]
[1762740673398,0.00193837,105860.0,105850.0,0.5766016]
[1762740673611,0.19086714,105860.0,105850.0,0.5766016]
[1762740674170,0.19086714,105860.0,105850.0,0.5245946]
[1762740674371,0.01380837,105860.0,105850.0,0.5245946]
[1762740675527,0.21876714,105860.0,105850.0,0.0528187]
[1762740675702,0.24374714,105860.0,105850.0,0.08674952]
[1762740675907,0.98729574,105860.0,105850.0,0.0613797]
[1762740676232,0.98729574,105860.0,105850.0,0.02744888]
[1762740676388,0.70446646,105860.0,105850.0,0.02744888]
[1762740676585,0.70446646,105860.0,105850.0,0.02544888]
[1762740677389,0.70346646,105860.0,105850.0,0.02544888]
[1762740677834,0.71646646,105860.0,105850.0,0.02644888]
[1762740678333,0.70346646,105860.0,105850.0,0.02544888]
[1762740678615,0.7031947,105860.0,105850.0,0.02544888]
[1762740679071,0.7261947,105860.0,105850.0,0.02744888]
[1762740680377,0.7261947,105860.0,105850.0,0.0613797]
[1762740680796,0.7261947,105860.0,105850.0,0.02744888]
[1762740681663,0.7261947,105860.0,105850.0,0.0613797]
[1762740682557,0.7261947,105860.0,105850.0,0.02744888]
[1762740683606,1.14306968,105860.0,105850.0,0.02744888]
[1762740683816,1.85498176,105860.0,105850.0,0.002]
[1762740684029,1.68405931,105860.0,105850.0,0.002]
[1762740685071,1.68405931,105860.0,105850.0,1e-08]
[1762740685313,0.54814675,105840.0,105830.0,0.03393082]
[1762740685538,0.8312317,105840.0,105830.0,0.03393082]
[1762740685728,0.18898233,105830.0,105820.0,0.08474952]
[1762740685945,0.26549512,105830.0,105820.0,0.08474952]
[1762740686090,0.24187233,105830.0,105820.0,0.08474952]
[1762740686488,0.24187233,105830.0,105820.0,0.08489438]
[1762740687135,0.2594332,105830.0,105820.0,0.08489438]
[1762740687342,0.2594332,105830.0,105820.0,0.00014486]
[1762740688072,0.2594332,105830.0,105820.0,0.00114486]
[1762740688373,0.2674332,105830.0,105820.0,0.00114486]
[1762740691168,0.2674332,105830.0,105820.0,0.00181371]
[1762740691350,0.30361548,105830.0,105820.0,0.00181371]
[1762740691554,0.97913646,105830.0,105820.0,0.00181371]
[1762740692159,0.56226148,105830.0,105820.0,0.00181371]
[1762740692508,0.95738846,105830.0,105820.0,0.00081371]
[1762740692896,0.54051348,105830.0,105820.0,0.00081371]
[1762740693313,0.56251348,105830.0,105820.0,0.00281371]
[1762740696164,0.97938846,105830.0,105820.0,0.00281371]
[1762740696510,0.18905378,105790.0,105780.0,0.03393082]
[1762740696722,0.18905378,105790.0,105780.0,0.03441362]
[1762740696723,0.2410355,105790.0,105780.0,0.03441362]
[1762740696926,0.27812606,105790.0,105780.0,0.00142196]
[1762740698239,0.27812606,105790.0,105780.0,0.01342196]
[1762740698439,0.27812606,105790.0,105780.0,0.00142196]
[1762740698789,0.60112606,105790.0,105780.0,0.01242196]
[1762740699231,0.60312606,105790.0,105780.0,0.02942196]
[1762740700439,0.60112606,105790.0,105780.0,0.01242196]
[1762740700621,0.60112606,105790.0,105780.0,0.02742196]
[1762740700622,0.60312606,105790.0,105780.0,0.02742196]
[1762740701926,0.41407228,105790.0,105780.0,0.21649361]
[1762740702129,0.60312606,105790.0,105780.0,0.02742196]
[1762740703019,0.60312606,105790.0,105780.0,0.21649361]
[1762740703364,0.60312606,105790.0,105780.0,0.02742196]
[1762740706581,0.62061485,105790.0,105780.0,0.02742196]
[1762740721335,0.40702107,105790.0,105780.0,0.49980156]
[1762740721535,0.63807485,105790.0,105780.0,0.58573938]
[1762740721739,0.44902107,105790.0,105780.0,0.58573938]
[1762740721971,0.12602107,105790.0,105780.0,0.58573938]
[1762740722391,0.01948879,105790.0,105780.0,0.58573938]
[1762740723006,0.01948879,105790.0,105780.0,0.63655808]
[1762740723841,0.01948879,105790.0,105780.0,0.63703075]
[1762740724194,0.01948879,105790.0,105780.0,0.63655808]
[1762740724425,0.01948879,105790.0,105780.0,0.63703075]
[1762740725004,0.01948879,105790.0,105780.0,0.70120166]
[1762740725894,0.01948879,105790.0,105780.0,1.02372899]
[1762740726104,0.01948879,105790.0,105780.0,0.99977378]
[1762740726316,0.01948879,105790.0,105780.0,1.04117097]
[1762740726969,0.01948879,105790.0,105780.0,1.06756179]
[1762740727173,0.002,105790.0,105780.0,1.04117097]
[1762740727396,0.01127,105820.0,105810.0,0.18901805]
[1762740727600,0.01127,105820.0,105810.0,0.472326]
[1762740727601,0.22663511,105820.0,105810.0,0.472326]
[1762740727805,0.24163511,105820.0,105810.0,0.47256073]
[1762740728215,0.04384662,105820.0,105810.0,0.50654297]
[1762740728422,0.2328468,105820.0,105810.0,0.50654297]
[1762740728623,0.04384662,105820.0,105810.0,0.50654297]
[1762740728837,0.01757662,105820.0,105810.0,0.58124384]
[1762740729049,0.01757662,105820.0,105810.0,0.6322172]
[1762740729250,0.59883308,105840.0,105820.0,0.18900018]
[1762740729456,0.62517455,105840.0,105820.0,0.47230813]
[1762740729676,0.62517455,105840.0,105820.0,0.47278063]
[1762740729885,0.62517455,105840.0,105830.0,0.18898233]
[1762740730107,0.62517455,105840.0,105820.0,0.47278063]
[1762740730313,0.18898233,105830.0,105820.0,0.18947268]
[1762740730547,0.01756098,105830.0,105820.0,0.19000018]
[1762740730751,0.20654331,105830.0,105820.0,0.19047268]
[1762740730965,0.21781331,105830.0,105820.0,0.19000018]
[1762740731180,0.21781331,105830.0,105820.0,0.18900018]
[1762740731385,0.02883098,105830.0,105820.0,0.18900018]
[1762740731588,0.01756098,105830.0,105820.0,0.47278063]
[1762740732006,0.20654331,105830.0,105820.0,0.0024725]
[1762740732211,0.18900018,105820.0,105810.0,0.50696138]
[1762740732410,0.18900018,105820.0,105810.0,0.50648884]
[1762740732618,0.23740233,105830.0,105820.0,0.18900018]
[1762740732817,0.25493421,105830.0,105820.0,0.47230813]
[1762740733030,0.21778421,105830.0,105820.0,0.50737588]
[1762740733253,0.21778421,105830.0,105820.0,0.3183757]
[1762740733466,0.21778421,105830.0,105820.0,0.50737588]
[1762740733651,0.02880188,105830.0,105820.0,0.50737588]
[1762740733884,0.21778421,105830.0,105820.0,0.50784838]
[1762740734094,0.01127,105830.0,105820.0,0.50784838]
[1762740734306,0.013,105830.0,105820.0,0.55776314]
[1762740734551,0.013,105830.0,105820.0,0.50837588]
[1762740735182,0.013,105830.0,105820.0,0.51137588]
[1762740735832,0.013,105830.0,105820.0,0.56338288]
[1762740736240,0.013,105830.0,105820.0,0.59778901]
[1762740736453,0.013,105830.0,105820.0,0.69589074]
[1762740736872,0.00014467,105840.0,105830.0,0.18898233]
[1762740737073,0.00014467,105840.0,105830.0,0.50735803]
[1762740738240,0.00014467,105840.0,105830.0,0.82573373]
[1762740738847,0.00914467,105840.0,105830.0,0.8387596]
[1762740739393,0.00014467,105840.0,105830.0,0.90448988]
[1762740739715,0.00014467,105840.0,105830.0,0.92445495]
[1762740739893,0.00014467,105840.0,105830.0,0.84817125]
[1762740740918,0.00014467,105840.0,105830.0,0.85817125]
[1762740745197,0.00014467,105840.0,105830.0,0.88350849]
[1762740747339,0.00014467,105840.0,105830.0,1.03040849]
[1762740748772,0.18910914,105840.0,105830.0,0.71203279]
[1762740749521,0.22815089,105840.0,105830.0,0.69606772]
[1762740749661,0.18910914,105840.0,105830.0,0.67073048]
[1762740749879,0.00014467,105840.0,105830.0,0.67073048]
[1762740750083,0.18910914,105840.0,105830.0,0.67073048]
[1762740750285,0.00014467,105840.0,105830.0,0.69606772]
[1762740750972,0.00014467,105840.0,105830.0,1.01444342]
[1762740751202,0.00014467,105840.0,105830.0,0.69606772]
[1762740751394,0.00014467,105840.0,105830.0,1.01397097]
[1762740751552,0.00014467,105840.0,105830.0,1.01444342]
[1762740752957,0.00014467,105840.0,105830.0,1.01397097]
[1762740753163,0.00014467,105840.0,105830.0,1.01444342]
[1762740753370,0.00014467,105840.0,105830.0,0.9010046]
[1762740754160,0.00014467,105840.0,105830.0,0.90147705]
[1762740754837,0.00014467,105840.0,105830.0,0.26472565]
[1762740755039,0.00014467,105840.0,105830.0,0.90147705]
[1762740755389,0.00014467,105840.0,105830.0,0.87613981]
[1762740756223,0.00014467,105840.0,105830.0,0.92711317]
[1762740756418,0.00014467,105840.0,105830.0,0.87613981]
[1762740756740,0.00014467,105840.0,105830.0,0.55776411]
[1762740757240,0.00014467,105840.0,105830.0,0.60873747]
[1762740757443,0.18910914,105840.0,105830.0,0.60873747]
[1762740757827,0.30642843,105840.0,105830.0,0.07539457]
[1762740758046,0.30034091,105840.0,105830.0,0.35983664]
[1762740758467,0.33652319,105840.0,105830.0,0.35983664]
[1762740759033,0.33652319,105840.0,105830.0,0.34983664]
[1762740759346,0.33652319,105840.0,105830.0,0.53881897]
[1762740759659,0.33652319,105840.0,105830.0,0.35583664]
[1762740760053,0.33652319,105840.0,105830.0,0.34983664]
[1762740760770,0.33652319,105840.0,105830.0,0.3273757]
[1762740760978,0.33652319,105840.0,105830.0,0.35284755]
[1762740762226,0.29509445,105840.0,105830.0,0.54182988]
[1762740762576,0.10612998,105840.0,105830.0,0.54182988]
[1762740762769,0.08225998,105840.0,105830.0,0.54182988]
[1762740762991,0.29509445,105840.0,105830.0,0.54182988]
[1762740763178,0.10612998,105840.0,105830.0,0.57576351]
[1762740763531,0.29510857,105840.0,105830.0,0.57576351]
[1762740763728,0.1061441,105840.0,105830.0,0.57576351]
[1762740763955,0.29510857,105840.0,105830.0,0.57576351]
[1762740764178,0.1061441,105840.0,105830.0,0.57576351]
[1762740764379,0.29510857,105840.0,105830.0,0.57576351]
[1762740765506,0.1061441,105840.0,105830.0,0.57576351]
[1762740765714,0.08859695,105840.0,105830.0,0.57576351]
[1762740765917,0.32829672,105840.0,105830.0,0.57576351]
[1762740766905,0.2951102,105840.0,105830.0,0.57576351]
[1762740767272,0.10614573,105840.0,105830.0,0.57576351]
[1762740767973,0.2951102,105840.0,105830.0,0.57576351]
[1762740768904,0.2951102,105840.0,105830.0,0.25738781]
[1762740769106,0.2951102,105840.0,105830.0,0.35284755]
[1762740769306,0.34894804,105840.0,105830.0,0.54182988]
[1762740769470,0.34894804,105840.0,105830.0,0.57576351]
[1762740770634,0.34894804,105840.0,105830.0,0.38678118]
[1762740771075,0.34894804,105840.0,105830.0,0.57576351]
[1762740771285,0.34894804,105840.0,105830.0,0.38678118]
[1762740771668,0.34894804,105840.0,105830.0,0.35284755]
[1762740771847,0.34894804,105840.0,105830.0,0.03447185]
[1762740772856,0.34894804,105840.0,105830.0,0.02547185]
[1762740773062,0.37294804,105840.0,105830.0,0.02747185]
[1762740773495,0.69594804,105840.0,105830.0,0.02747185]
[1762740775955,0.69594804,105840.0,105830.0,0.34584755]
[1762740776326,0.69594804,105840.0,105830.0,0.02747185]
[1762740778047,0.73786804,105840.0,105830.0,0.02747185]
[1762740779396,0.73786804,105840.0,105830.0,0.34584755]
[1762740779574,0.73786804,105840.0,105830.0,0.37978118]
[1762740779915,0.73786804,105840.0,105830.0,0.56876351]
[1762740780120,0.73786804,105840.0,105830.0,0.06140548]
[1762740780474,0.73786804,105840.0,105830.0,0.56876351]
[1762740780674,0.73786804,105840.0,105830.0,0.37978118]
[1762740781118,0.73786804,105840.0,105830.0,0.56876351]
[1762740781322,0.73786804,105840.0,105830.0,0.54329166]
[1762740781323,0.07787573,105840.0,105830.0,0.54329166]
[1762740781459,0.26105142,105840.0,105830.0,0.59426502]
[1762740781661,0.29915142,105840.0,105830.0,0.40528269]
[1762740781867,0.35187939,105840.0,105830.0,0.59426502]
[1762740782266,0.03590467,105840.0,105830.0,0.59426502]
[1762740782469,0.02414467,105840.0,105830.0,0.91264072]
[1762740782784,0.02414467,105840.0,105830.0,0.87870709]
[1762740782956,0.02414467,105840.0,105830.0,0.82773373]
[1762740783157,0.00014467,105840.0,105830.0,0.82573373]
[1762740783352,0.00014467,105840.0,105830.0,0.18945478]
[1762740783544,0.01114467,105840.0,105830.0,0.55978848]
[1762740783746,0.01114467,105840.0,105830.0,0.55931603]
[1762740783961,0.01114467,105840.0,105830.0,0.55978848]
[1762740784318,0.00014467,105840.0,105830.0,0.55878848]
[1762740785132,0.00014467,105840.0,105830.0,0.87716418]
[1762740785260,0.00014467,105840.0,105830.0,0.88416418]
[1762740785459,0.00014467,105840.0,105830.0,0.83673373]
[1762740785714,0.00014467,105840.0,105830.0,0.83720618]
[1762740787954,0.00014467,105840.0,105830.0,0.51883048]
[1762740788135,0.00014467,105840.0,105830.0,0.83720618]
[1762740789491,0.00014467,105840.0,105830.0,0.88812071]
[1762740791841,0.20086914,105840.0,105830.0,0.38029023]
[1762740792021,0.34359157,105840.0,105830.0,0.36331608]
[1762740792220,0.27515142,105840.0,105830.0,0.36331608]
[1762740792418,0.25215142,105840.0,105830.0,0.57775653]
[1762740792621,0.25215142,105840.0,105830.0,0.55229841]
[1762740792837,0.25215142,105840.0,105830.0,0.57375617]
[1762740793041,0.25215142,105840.0,105830.0,0.54032449]
[1762740793321,0.26756612,105840.0,105830.0,0.51486673]
[1762740793528,0.24456612,105840.0,105830.0,0.53332525]
[1762740793940,0.24456612,105840.0,105830.0,0.53932525]
[1762740794272,0.24456612,105840.0,105830.0,0.51386673]
[1762740796017,0.03618228,105840.0,105830.0,0.53449034]
[1762740796219,0.03618228,105840.0,105830.0,0.58540487]
[1762740796550,0.03618228,105840.0,105830.0,0.56478126]
[1762740797433,0.56562662,105850.0,105840.0,0.18896447]
[1762740797679,0.04794228,105850.0,105840.0,0.5313065]
[1762740797850,0.2368889,105850.0,105840.0,0.5313065]
[1762740798051,0.01176,105850.0,105840.0,0.5313065]
[1762740798255,0.31183979,105860.0,105850.0,0.18894662]
[1762740798443,0.32938978,105860.0,105850.0,0.18894662]
[1762740798652,0.27956978,105860.0,105850.0,0.47189064]
[1762740799679,0.28846978,105860.0,105850.0,0.21640425]
[1762740799853,0.28846978,105860.0,105850.0,0.31040165]
[1762740800060,0.28601979,105860.0,105850.0,0.34434203]
[1762740800391,0.28601979,105860.0,105850.0,0.53328865]
[1762740801566,0.06018228,105860.0,105850.0,0.53328865]
[1762740801764,0.24911105,105860.0,105850.0,0.50783102]
[1762740802468,0.26070105,105860.0,105850.0,0.50783102]
[1762740802667,0.26070105,105860.0,105850.0,0.53327548]
[1762740802878,0.30075105,105860.0,105850.0,0.06138484]
[1762740804102,0.30075105,105860.0,105850.0,0.03594038]
[1762740804302,0.30075105,105860.0,105850.0,0.06138655]
[1762740804500,0.30075105,105860.0,105850.0,0.02744617]
[1762740804703,0.62375105,105860.0,105850.0,0.02744617]
[1762740804915,0.64128879,105860.0,105850.0,0.02744617]
[1762740805321,0.64129059,105860.0,105850.0,0.02744617]
[1762740807013,0.64129059,105860.0,105850.0,0.002]
[1762740807014,1.22740155,105860.0,105850.0,0.002]
[1762740807278,1.25576933,105860.0,105850.0,0.002]
[1762740808815,1.25576933,105860.0,105850.0,1e-08]
[1762740819365,0.97282531,105860.0,105850.0,1e-08]
[1762740819566,1.25576933,105860.0,105850.0,1e-08]
[1762740832231,1.26456529,105860.0,105850.0,1e-08]
[1762740833045,0.22514675,105840.0,105830.0,0.03394038]
[1762740833249,0.88491825,105840.0,105830.0,0.03394038]
[1762740833446,0.54816461,105830.0,105820.0,0.08485491]
[1762740833712,0.59945572,105830.0,105820.0,0.08485491]
[1762740834289,0.62782951,105830.0,105820.0,0.08485491]
[1762740835569,0.64882951,105830.0,105820.0,0.08685491]
[1762740835774,0.65682951,105830.0,105820.0,0.08685491]
[1762740836661,1.19660144,105830.0,105820.0,0.08685491]
[1762740836877,1.19660144,105830.0,105820.0,0.03594038]
[1762740837231,1.19660144,105830.0,105820.0,0.002]
[1762740839440,0.22518246,105820.0,105810.0,0.08508964]
[1762740839650,1.03555148,105820.0,105810.0,0.03417511]
[1762740840137,1.06393091,105820.0,105810.0,0.03417511]
[1762740840768,0.99778891,105820.0,105810.0,0.03417511]
[1762740840982,1.01678891,105820.0,105810.0,0.03617511]
[1762740841712,0.99066491,105820.0,105810.0,0.03617511]
[1762740842073,0.97958991,105820.0,105810.0,0.03617511]
[1762740842304,0.69664589,105820.0,105810.0,0.03617511]
[1762740842576,0.93492491,105820.0,105810.0,0.03617511]
[1762740843388,0.93492491,105820.0,105810.0,0.00223473]
[1762740846864,0.65198089,105820.0,105810.0,0.00223473]
[1762740847262,0.93492491,105820.0,105810.0,0.00223473]
[1762740850520,1.26792491,105820.0,105810.0,0.00223473]